bitfinex/quotes_BTCUSD_20220405
["timestamp","ask_amount","ask_price","bid_price","bid_amount"]
[1649162189896,0.21241504,47117.0,47116.0,0.1607308]
[1649162190343,0.21241504,47117.0,47116.0,0.1557308]
[1649162192550,0.21241504,47117.0,47116.0,0.2087668]
[1649162193502,0.11241504,47117.0,47116.0,0.1557308]
[1649162194494,0.11241504,47117.0,47116.0,0.4557308]
[1649162194596,0.11241504,47117.0,47116.0,0.5057308]
[1649162194695,0.11241504,47117.0,47116.0,0.6057308]
[1649162195044,0.11241504,47117.0,47116.0,0.91907047]
[1649162195444,0.11241504,47117.0,47116.0,1.01651246]
[1649162196250,0.11241504,47117.0,47116.0,1.19681282]
[1649162197150,0.11241504,47117.0,47116.0,1.01651246]
[1649162199269,0.11241504,47117.0,47116.0,0.71651246]
[1649162199669,0.11241504,47117.0,47116.0,0.61907047]
[1649162201495,0.11241504,47117.0,47116.0,0.58907047]
[1649162203145,0.11241504,47117.0,47116.0,0.63907047]
[1649162203897,0.11241504,47117.0,47116.0,0.3257308]
[1649162203995,0.11241504,47117.0,47116.0,0.2257308]
[1649162204450,0.11241504,47117.0,47116.0,0.0257308]
[1649162204854,0.11241504,47117.0,47116.0,0.33900766]
[1649162204948,0.11241504,47117.0,47116.0,0.43900766]
[1649162206102,0.11241504,47117.0,47116.0,0.48900766]
[1649162206201,0.11241504,47117.0,47116.0,0.53900766]
[1649162206854,0.11241504,47117.0,47116.0,0.2257308]
[1649162206955,0.11241504,47117.0,47116.0,0.0757308]
[1649162207153,0.11241504,47117.0,47116.0,0.0691758]
[1649162207355,0.11241504,47117.0,47116.0,0.0257308]
[1649162207468,0.41241504,47117.0,47116.0,0.0257308]
[1649162207709,0.11241504,47117.0,47116.0,0.0257308]
[1649162208507,0.38541231,47117.0,47116.0,0.0257308]
[1649162209605,0.55427903,47117.0,47116.0,0.0257308]
[1649162210458,0.85427903,47117.0,47116.0,0.0257308]
[1649162211260,0.55427903,47117.0,47116.0,0.0257308]
[1649162211417,0.41162627,47117.0,47116.0,0.06115914]
[1649162211663,0.41162627,47117.0,47116.0,0.06051066]
[1649162211767,0.41162627,47117.0,47116.0,0.05981763]
[1649162212062,0.41162627,47117.0,47116.0,0.09526137]
[1649162214466,0.60634814,47117.0,47116.0,0.09526137]
[1649162215817,0.41162627,47117.0,47116.0,0.09526137]
[1649162215919,0.138629,47117.0,47116.0,0.09526137]
[1649162216766,0.12677511,47117.0,47116.0,0.06117454]
[1649162216969,0.12832215,47117.0,47116.0,0.0257308]
[1649162217066,0.40095088,47117.0,47116.0,0.0257308]
[1649162221012,0.70095088,47117.0,47116.0,0.0257308]
[1649162221511,0.40095088,47117.0,47116.0,0.0257308]
[1649162221859,0.0514616,47115.0,47103.0,0.10806199]
[1649162221966,0.0514616,47115.0,47103.0,0.15806199]
[1649162221967,0.25131855,47110.0,47103.0,0.15806199]
[1649162222062,0.26754546,47109.0,47103.0,0.20806199]
[1649162222258,0.26754546,47109.0,47103.0,0.19806199]
[1649162222462,0.26754546,47109.0,47103.0,0.19306199]
[1649162223015,0.26754546,47109.0,47103.0,1.19306199]
[1649162223111,0.26754546,47109.0,47103.0,1.17744199]
[1649162223263,0.26754546,47109.0,47103.0,0.03]
[1649162223360,0.26754546,47109.0,47101.0,0.09744199]
[1649162223463,0.26754546,47109.0,47104.0,0.09744199]
[1649162223609,0.56754546,47109.0,47104.0,0.09744199]
[1649162223707,0.56754546,47109.0,47098.0,1.09744199]
[1649162223805,0.56754546,47109.0,47098.0,0.09744199]
[1649162224007,0.26754546,47109.0,47098.0,0.09744199]
[1649162224107,0.56754546,47109.0,47098.0,0.09744199]
[1649162224207,0.26754546,47109.0,47098.0,0.09744199]
[1649162224312,0.28886549,47101.0,47098.0,0.09744199]
[1649162224408,0.3,47109.0,47098.0,0.09744199]
[1649162224508,0.3,47109.0,47096.0,0.26800378]
[1649162224509,0.25131855,47110.0,47096.0,0.26800378]
[1649162224708,0.15785103,47103.0,47096.0,0.01062]
[1649162224809,0.053065,47107.0,47095.0,0.09744199]
[1649162224909,0.053065,47107.0,47096.0,0.01062]
[1649162225011,0.063675,47107.0,47095.0,0.09744199]
[1649162225431,0.063675,47107.0,47096.0,0.31350252]
[1649162225611,0.26518943,47102.0,47097.0,0.01062]
[1649162225711,0.29305298,47099.0,47096.0,0.31350252]
[1649162225812,0.11799591,47108.0,47097.0,0.3]
[1649162225911,0.00125691,47108.0,47097.0,0.3]
[1649162226012,0.00125691,47108.0,47099.0,0.1061]
[1649162226113,0.00125691,47108.0,47100.0,0.3]
[1649162226313,0.00125691,47108.0,47100.0,0.35]
[1649162226713,0.19061582,47107.0,47100.0,0.35]
[1649162226815,0.2411129,47106.0,47100.0,0.63803292]
[1649162226916,0.19061582,47107.0,47100.0,0.35]
[1649162227013,0.00125691,47108.0,47100.0,0.05]
[1649162227111,0.00125691,47108.0,47100.0,0.35]
[1649162227213,0.00125691,47108.0,47099.0,0.2061]
[1649162227458,0.00125407,47106.0,47099.0,0.2061]
[1649162227556,0.00125407,47106.0,47099.0,0.05]
[1649162227656,0.00125407,47106.0,47100.0,0.05]
[1649162227755,0.00125407,47106.0,47097.0,0.41062]
[1649162227957,0.24315068,47106.0,47099.0,0.30349646]
[1649162228057,0.24315068,47106.0,47099.0,0.35349646]
[1649162228157,0.24315068,47106.0,47100.0,0.3]
[1649162228358,0.24315068,47106.0,47099.0,0.1]
[1649162228458,0.24315068,47106.0,47099.0,0.05]
[1649162228559,0.24315068,47106.0,47097.0,0.4]
[1649162229112,0.24315068,47106.0,47098.0,0.053057]
[1649162229211,0.24315068,47106.0,47102.0,0.2317949]
[1649162229310,0.24315068,47106.0,47102.0,0.2817949]
[1649162230162,0.24315068,47106.0,47102.0,0.05]
[1649162230364,0.053059,47105.0,47100.0,0.05]
[1649162230714,0.053059,47105.0,47097.0,0.05]
[1649162230813,0.053059,47105.0,47096.0,0.30379125]
[1649162230915,0.053059,47105.0,47097.0,0.01062]
[1649162231016,0.053059,47105.0,47096.0,0.05]
[1649162231361,0.053059,47105.0,47095.0,0.05]
[1649162231550,0.053059,47105.0,47094.0,0.1]
[1649162231653,0.053067,47100.0,47093.0,0.09694891]
[1649162231901,0.053067,47100.0,47092.0,0.35044451]
[1649162232008,0.25526701,47095.0,47092.0,0.35044451]
[1649162232101,0.23795696,47101.0,47092.0,0.35044451]
[1649162232753,0.38844657,47099.0,47092.0,0.3499]
[1649162232903,0.053076,47095.0,47092.0,0.3499]
[1649162233201,0.26421529,47093.0,47092.0,0.3499]
[1649162233305,0.26421529,47093.0,47092.0,0.3504445]
[1649162233707,0.00125265,47105.0,47092.0,0.6504445]
[1649162233804,0.01179714,47104.0,47092.0,0.6504445]
[1649162233912,0.00118714,47104.0,47092.0,0.6504445]
[1649162234004,0.00118714,47104.0,47092.0,0.7035075]
[1649162234103,0.22986014,47101.0,47094.0,0.30030594]
[1649162234303,0.053067,47100.0,47094.0,0.05]
[1649162234756,0.24577168,47099.0,47093.0,0.05]
[1649162234904,0.24577168,47099.0,47092.0,0.3504445]
[1649162234905,0.24577168,47099.0,47092.0,0.4004445]
[1649162235003,0.24577168,47099.0,47097.0,0.01073763]
[1649162235104,0.24577168,47099.0,47098.0,0.01073763]
[1649162235304,0.48134988,47099.0,47098.0,0.01073763]
[1649162235806,0.38484988,47099.0,47098.0,0.01073763]
[1649162236355,0.38484988,47099.0,47092.0,0.40044451]
[1649162236458,0.38484988,47099.0,47092.0,0.3999]
[1649162236559,0.38484988,47099.0,47092.0,0.66190752]
[1649162236657,0.38484988,47099.0,47092.0,0.40044451]
[1649162237659,0.38484988,47099.0,47092.0,0.3999]
[1649162237859,0.38484988,47099.0,47092.0,0.4004445]
[1649162237962,0.053072,47098.0,47092.0,0.4004445]
[1649162238900,0.053072,47098.0,47092.0,0.3999]
[1649162239100,0.053072,47098.0,47092.0,0.4004445]
[1649162239303,0.053072,47098.0,47092.0,0.3954445]
[1649162239610,0.053082,47097.0,47092.0,0.0455445]
[1649162239700,0.406162,47096.0,47092.0,0.0455445]
[1649162239801,0.406162,47096.0,47092.0,0.0005445]
[1649162240003,0.28931773,47089.0,47086.0,0.0055445]
[1649162240104,0.22990767,47088.0,47086.0,0.0055445]
[1649162240209,0.28931773,47089.0,47087.0,0.01073911]
[1649162240357,0.28931773,47089.0,47088.0,0.08953812]
[1649162240455,0.28931773,47089.0,47088.0,0.01073922]
[1649162240806,0.053079,47090.0,47088.0,0.01073922]
[1649162240906,0.053079,47090.0,47086.0,0.0055445]
[1649162241005,0.041629,47090.0,47086.0,0.0055445]
[1649162241107,0.01062,47097.0,47086.0,0.0055445]
[1649162241108,0.053073,47095.0,47086.0,0.0055445]
[1649162241207,0.32326617,47095.0,47089.0,0.29016051]
[1649162241304,0.32326617,47095.0,47086.0,0.0055445]
[1649162241805,0.30470399,47093.0,47086.0,0.0055445]
[1649162242551,0.30470399,47093.0,47091.0,0.01073865]
[1649162242653,0.30470399,47093.0,47092.0,0.010739]
[1649162244153,0.30470399,47093.0,47092.0,0.005739]
[1649162244252,0.30470399,47093.0,47092.0,0.00573029]
[1649162244556,0.54344595,47093.0,47092.0,0.00573029]
[1649162244660,0.30616237,47093.0,47092.0,0.00573029]
[1649162244854,0.00145838,47093.0,47091.0,0.106136]
[1649162244960,0.00145838,47093.0,47092.0,0.00572926]
[1649162245510,0.00145838,47093.0,47092.0,0.00481747]
[1649162245608,0.00145838,47093.0,47091.0,0.206136]
[1649162246155,0.00145838,47093.0,47091.0,0.201136]
[1649162246253,0.00145838,47093.0,47091.0,0.48651363]
[1649162246552,0.00145838,47093.0,47091.0,0.201136]
[1649162246652,0.00145838,47093.0,47091.0,0.095]
[1649162246754,0.00145838,47093.0,47092.0,0.01073694]
[1649162246852,0.00284779,47093.0,47092.0,0.01073694]
[1649162247704,0.24412299,47093.0,47092.0,0.01073694]
[1649162247804,0.00284779,47093.0,47092.0,0.01073694]
[1649162248706,0.053078,47094.0,47092.0,0.01073694]
[1649162248856,0.053078,47094.0,47093.0,0.01073808]
[1649162248956,0.30781234,47094.0,47093.0,0.01073808]
[1649162249057,0.053078,47094.0,47093.0,0.01073808]
[1649162249306,0.053078,47094.0,47090.0,0.00054187]
[1649162249877,0.053078,47094.0,47084.0,0.27050058]
[1649162250059,0.3028764,47093.0,47090.0,0.00055977]
[1649162250160,0.2649578,47091.0,47090.0,0.00055977]
[1649162250260,0.2649578,47091.0,47090.0,0.01129842]
[1649162251062,0.2649578,47091.0,47090.0,0.01073865]
[1649162253364,0.2649578,47091.0,47088.0,0.0005626]
[1649162253465,0.1649578,47091.0,47083.0,0.01062]
[1649162253719,0.1649578,47091.0,47088.0,0.00054263]
[1649162253820,0.20254042,47089.0,47088.0,0.00054263]
[1649162254020,0.50254042,47089.0,47088.0,0.00054263]
[1649162254120,0.82177942,47089.0,47088.0,0.00054263]
[1649162254219,0.50254042,47089.0,47088.0,0.00054263]
[1649162254319,0.52177942,47089.0,47088.0,0.00054263]
[1649162254421,0.20254042,47089.0,47088.0,0.00054263]
[1649162254724,0.20254042,47089.0,47079.0,0.01062]
[1649162254820,0.20254042,47089.0,47073.0,0.01062]
[1649162254931,0.50633578,47089.0,47086.0,0.00592932]
[1649162255122,0.20254042,47089.0,47086.0,0.00592932]
[1649162255723,0.2711278,47091.0,47086.0,0.00592932]
[1649162255924,0.2711278,47091.0,47086.0,0.0055445]
[1649162256120,0.2711278,47091.0,47086.0,0.00592932]
[1649162256222,0.3,47090.0,47086.0,0.00592932]
[1649162256424,0.2711278,47091.0,47086.0,0.00592932]
[1649162256526,0.2180408,47091.0,47086.0,0.00592932]
[1649162256723,0.20292129,47088.0,47086.0,0.00592932]
[1649162256821,0.25600729,47088.0,47086.0,0.00592932]
[1649162257123,0.053086,47088.0,47086.0,0.0055445]
[1649162257351,0.1649578,47091.0,47086.0,0.0055445]
[1649162258205,0.2180408,47091.0,47086.0,0.0055445]
[1649162258404,0.01062,47090.0,47086.0,0.0055445]
[1649162258505,0.01062,47090.0,47086.0,0.00609827]
[1649162258703,0.31062,47090.0,47086.0,0.00609827]
[1649162258857,0.31218339,47090.0,47086.0,0.00609827]
[1649162259503,0.31218339,47090.0,47086.0,0.0055445]
[1649162259705,0.31218339,47090.0,47086.0,0.00609827]
[1649162260255,0.319239,47089.0,47086.0,0.00609827]
[1649162260455,0.30156339,47090.0,47086.0,0.00609827]
[1649162260556,0.319239,47089.0,47086.0,0.00609827]
[1649162260758,0.319239,47089.0,47086.0,0.0055445]
[1649162260959,0.319239,47089.0,47086.0,0.00609827]
[1649162261145,0.319239,47088.0,47086.0,0.00109827]
[1649162261234,0.053087,47088.0,47086.0,0.00109827]
[1649162261334,0.319239,47087.0,47086.0,0.00109827]
[1649162261934,0.319239,47087.0,47086.0,0.0005445]
[1649162263482,0.619239,47087.0,47086.0,0.0005445]
[1649162264487,0.62078698,47087.0,47086.0,0.0005445]
[1649162265316,0.72078698,47087.0,47086.0,0.0005445]
[1649162265513,0.00108899,47085.0,47072.0,0.24972]
[1649162265611,0.106196,47083.0,47072.0,0.24972]
[1649162265713,0.23627737,47073.0,47072.0,0.34972]
[1649162265811,0.319239,47081.0,47077.0,0.00217329]
[1649162266811,0.51911902,47080.0,47072.0,0.3391]
[1649162266915,0.27581902,47080.0,47077.0,0.00054287]
[1649162267672,0.32891602,47080.0,47077.0,0.00054287]
[1649162267968,0.32891602,47080.0,47072.0,0.2891]
[1649162268112,0.32891602,47080.0,47076.0,0.00054287]
[1649162268762,0.319239,47079.0,47076.0,0.00054287]
[1649162268863,0.425441,47079.0,47076.0,0.00054287]
[1649162269015,0.25022378,47078.0,47076.0,0.00054287]
[1649162269111,0.319239,47077.0,47072.0,0.2391]
[1649162269210,0.25022378,47078.0,47072.0,0.2391]
[1649162269312,0.3,47077.0,47075.0,0.00054284]
[1649162269614,0.25022378,47078.0,47075.0,0.00054284]
[1649162270115,0.053103,47078.0,47075.0,0.00054284]
[1649162270217,0.053099,47078.0,47075.0,0.00054284]
[1649162270316,0.053099,47078.0,47072.0,0.2391]
[1649162270516,0.053099,47078.0,47074.0,0.00054291]
[1649162270765,0.27581902,47080.0,47074.0,0.00054291]
[1649162271267,0.26973779,47077.0,47074.0,0.00054291]
[1649162271566,0.26973779,47077.0,47072.0,0.2391]
[1649162271766,0.26973779,47077.0,47073.0,0.00054292]
[1649162272654,0.319239,47076.0,47073.0,0.00054292]
[1649162272757,0.319239,47076.0,47072.0,0.2391]
[1649162272909,0.30900131,47073.0,47072.0,0.2391]
[1649162273004,0.62824031,47073.0,47072.0,0.2391]
[1649162273303,0.319239,47073.0,47072.0,0.2391]
[1649162273708,0.319239,47073.0,47071.0,0.01]
[1649162273804,0.053112,47073.0,47071.0,0.01]
[1649162273904,0.23546856,47072.0,47071.0,0.01]
[1649162274307,0.5783767,47072.0,47071.0,0.01]
[1649162274406,0.5783767,47072.0,47071.0,0.005]
[1649162274407,1.1976157,47072.0,47071.0,0.005]
[1649162274510,1.0314877,47072.0,47071.0,0.005]
[1649162275206,1.3507267,47072.0,47071.0,0.005]
[1649162275458,1.3897267,47072.0,47071.0,0.005]
[1649162277171,1.4496867,47072.0,47071.0,0.005]
[1649162277575,0.053121,47069.0,47057.0,0.01063]
[1649162277674,0.053125,47065.0,47057.0,0.01063]
[1649162277772,0.619239,47064.0,47057.0,0.01063]
[1649162277874,0.619239,47064.0,47056.0,0.01]
[1649162277875,0.319239,47064.0,47056.0,0.01]
[1649162278074,0.319239,47062.0,47056.0,0.01]
[1649162278626,0.372361,47058.0,47056.0,0.01]
[1649162280161,2.1,47057.0,47050.0,3.606]
[1649162280265,2.1,47057.0,47050.0,3.35583064]
[1649162280266,0.22920112,47051.0,47050.0,3.35583064]
[1649162280368,0.54844012,47051.0,47050.0,3.35583064]
[1649162280468,0.58744012,47051.0,47050.0,3.35583064]
[1649162280564,0.358239,47051.0,47050.0,3.35583064]
[1649162280859,0.358239,47051.0,47050.0,3.63276269]
[1649162280860,0.039,47051.0,47050.0,3.63276269]
[1649162280961,0.039,47051.0,47050.0,3.64339269]
[1649162281058,1.51685935,47057.0,47050.0,3.64339269]
[1649162281159,1.51685935,47057.0,47051.0,0.01063]
[1649162281259,0.329869,47056.0,47050.0,3.63276269]
[1649162281360,0.01063,47056.0,47050.0,3.63276269]
[1649162281709,0.01063,47056.0,47053.0,0.25360622]
[1649162281910,1.51685935,47057.0,47053.0,0.25360622]
[1649162282060,0.319239,47056.0,47050.0,3.63276269]
[1649162282162,1.51685935,47057.0,47050.0,3.63276269]
[1649162282570,1.51685935,47057.0,47051.0,0.00060284]
[1649162282662,0.01063,47056.0,47051.0,0.00060284]
[1649162282762,1.51685935,47057.0,47051.0,0.00060284]
[1649162282862,1.51685935,47057.0,47050.0,3.62836553]
[1649162283064,0.01063,47056.0,47050.0,3.67836553]
[1649162283164,1.51685935,47057.0,47051.0,0.17074382]
[1649162283317,1.51685935,47057.0,47051.0,0.16574382]
[1649162283413,1.51685935,47057.0,47051.0,0.31164891]
[1649162283514,1.51685935,47057.0,47056.0,0.08233642]
[1649162283665,1.51685935,47057.0,47056.0,0.01074435]
[1649162283763,1.51685935,47057.0,47056.0,0.36283403]
[1649162283864,1.51685935,47057.0,47056.0,0.31283403]
[1649162283963,1.51685935,47057.0,47056.0,0.36283403]
[1649162284163,1.51685935,47057.0,47056.0,0.35783403]
[1649162286115,1.51685935,47057.0,47056.0,0.35783324]
[1649162286615,1.51685935,47057.0,47056.0,0.65783324]
[1649162287115,1.51685935,47057.0,47056.0,0.76403224]
[1649162287353,1.51685935,47057.0,47056.0,0.75903224]
[1649162287453,1.51685935,47057.0,47056.0,0.85146153]
[1649162287652,1.51685935,47057.0,47056.0,0.75903224]
[1649162287856,1.51685935,47057.0,47056.0,0.85146153]
[1649162288203,1.51685935,47057.0,47056.0,1.07347265]
[1649162288452,1.51685935,47057.0,47056.0,1.16590194]
[1649162288555,1.51685935,47057.0,47056.0,1.16590125]
[1649162288903,1.05408068,47057.0,47056.0,1.16590125]
[1649162290159,1.05408068,47057.0,47056.0,1.16090125]
[1649162291110,1.05408068,47057.0,47056.0,1.15015838]
[1649162291204,1.05408068,47057.0,47056.0,1.16090171]
[1649162292458,1.05408068,47057.0,47056.0,0.86090171]
[1649162292560,1.0534225,47057.0,47056.0,0.86090171]
[1649162292910,1.0534225,47057.0,47056.0,0.76847242]
[1649162293011,1.0534225,47057.0,47056.0,0.75772909]
[1649162293164,1.0534225,47057.0,47056.0,0.85068923]
[1649162293260,1.0534225,47057.0,47056.0,1.15068923]
[1649162293409,1.0534225,47057.0,47056.0,0.75825994]
[1649162293510,1.0534225,47057.0,47056.0,1.15068923]
[1649162293711,1.0534225,47057.0,47056.0,1.05825994]
[1649162294010,1.0534225,47057.0,47056.0,1.15068923]
[1649162294115,1.0534225,47057.0,47056.0,0.85068923]
[1649162294213,1.0534225,47057.0,47056.0,1.15068923]
[1649162294361,1.0534225,47057.0,47056.0,0.75825994]
[1649162294611,1.0534225,47057.0,47056.0,0.74449023]
[1649162294895,1.0534225,47057.0,47056.0,0.65206094]
[1649162295694,1.0534225,47057.0,47056.0,0.95206094]
[1649162295793,1.0534225,47057.0,47056.0,1.00016594]
[1649162295992,1.0534225,47057.0,47056.0,0.70016594]
[1649162296091,1.0534225,47057.0,47056.0,1.09259523]
[1649162297349,1.0534225,47057.0,47056.0,0.76259523]
[1649162297448,1.1334225,47057.0,47056.0,1.00949023]
[1649162297750,1.1334225,47057.0,47056.0,0.70949023]
[1649162298052,1.1334225,47057.0,47056.0,0.91706094]
[1649162298205,1.1334225,47057.0,47056.0,1.00953185]
[1649162298300,1.1334225,47057.0,47056.0,1.06263185]
[1649162298500,1.1334225,47057.0,47056.0,0.75763185]
[1649162298804,1.1334225,47057.0,47056.0,1.00453185]
[1649162298907,1.1334225,47057.0,47056.0,0.91206094]
[1649162299007,1.1334225,47057.0,47056.0,0.61206094]
[1649162299106,1.1334225,47057.0,47056.0,0.70453185]
[1649162299306,1.1334225,47057.0,47056.0,0.61206094]
[1649162300508,1.1334225,47057.0,47056.0,0.31497126]
[1649162301210,1.1334225,47057.0,47056.0,0.61497126]
[1649162301311,1.1334225,47057.0,47056.0,0.31497126]
[1649162301562,1.1334225,47057.0,47056.0,0.61497126]
[1649162302584,1.1334225,47057.0,47056.0,0.8979625]
[1649162302879,1.1334225,47057.0,47056.0,0.99043341]
[1649162303236,1.1334225,47057.0,47056.0,0.69043341]
[1649162303529,1.1334225,47057.0,47056.0,0.5979625]
[1649162303731,1.1334225,47057.0,47056.0,0.69043341]
[1649162303930,1.1334225,47057.0,47056.0,0.5979625]
[1649162304133,1.1334225,47057.0,47056.0,0.69043341]
[1649162304231,1.1334225,47057.0,47056.0,0.74043341]
[1649162304332,1.1334225,47057.0,47056.0,0.6479625]
[1649162304533,1.1334225,47057.0,47056.0,0.74043341]
[1649162304632,0.00250921,47057.0,47056.0,0.74043341]
[1649162304741,0.01062,47070.0,47057.0,0.053095]
[1649162304834,0.00057399,47074.0,47060.0,0.106175]
[1649162304937,0.00057399,47074.0,47061.0,0.27987381]
[1649162305033,0.00057399,47074.0,47062.0,0.01062]
[1649162305134,0.5,47076.0,47063.0,0.039]
[1649162305231,0.01062,47075.0,47063.0,0.039]
[1649162305331,0.01062,47075.0,47066.0,0.15660905]
[1649162305434,0.5,47076.0,47063.0,0.039]
[1649162305435,0.00057404,47074.0,47063.0,0.039]
[1649162305532,0.00057404,47074.0,47064.0,0.01062]
[1649162305632,0.00057404,47074.0,47070.0,0.30240208]
[1649162305741,0.00057404,47074.0,47064.0,0.01062]
[1649162305834,0.00057404,47074.0,47069.0,0.106164]
[1649162305935,0.00057404,47074.0,47070.0,0.053082]
[1649162306106,0.00057404,47074.0,47066.0,0.01062]
[1649162306164,0.00057404,47074.0,47071.0,0.053082]
[1649162306366,0.5,47075.0,47070.0,0.106164]
[1649162306562,0.5,47075.0,47066.0,0.039]
[1649162306662,0.50057406,47075.0,47066.0,0.039]
[1649162306762,0.27556841,47068.0,47067.0,0.31444041]
[1649162306865,0.05367506,47075.0,47067.0,0.32518271]
[1649162306965,0.05367506,47075.0,47067.0,0.36444041]
[1649162307613,0.053101,47075.0,47067.0,0.36444041]
[1649162307813,0.59675676,47057.0,47056.0,0.80863984]
[1649162307913,0.59675676,47057.0,47056.0,0.80938214]
[1649162308015,0.59675676,47057.0,47056.0,1.04294674]
[1649162308763,0.59675676,47057.0,47056.0,1.3574643]
[1649162308967,0.59675676,47057.0,47056.0,1.09920258]
[1649162309164,0.59675676,47057.0,47056.0,1.14920258]
[1649162311016,0.53708109,47057.0,47056.0,1.14920258]
[1649162311968,0.53708109,47057.0,47056.0,0.73782446]
[1649162313274,0.53708109,47057.0,47056.0,0.50425986]
[1649162313615,0.53708109,47057.0,47056.0,0.46525986]
[1649162314017,0.53708109,47057.0,47056.0,0.31451756]
[1649162314418,0.53708109,47057.0,47056.0,0.46576032]
[1649162315168,0.53708109,47057.0,47056.0,0.47650627]
[1649162315367,0.53708109,47057.0,47056.0,0.32526351]
[1649162315467,0.53708109,47057.0,47056.0,0.59948097]
[1649162315569,0.53708109,47057.0,47056.0,0.59947937]
[1649162315771,0.53708109,47057.0,47056.0,0.59947926]
[1649162316517,0.53708109,47057.0,47056.0,0.49259846]
[1649162320323,0.53708109,47057.0,47056.0,0.31526146]
[1649162324371,0.53708109,47057.0,47056.0,0.30504841]
[1649162332584,0.53708109,47057.0,47056.0,0.30004841]
[1649162335192,0.53708109,47057.0,47056.0,0.30315441]
[1649162336715,0.53708109,47057.0,47056.0,0.59938726]
[1649162337517,0.53708109,47057.0,47056.0,0.30315441]
[1649162337716,0.53708109,47057.0,47056.0,0.25004841]
[1649162338567,0.53708109,47057.0,47056.0,0.48658446]
[1649162338865,0.53708109,47057.0,47056.0,0.25004841]
[1649162342439,0.53708109,47057.0,47056.0,0.53044906]
[1649162342686,0.53708109,47057.0,47056.0,0.25004841]
[1649162343036,0.53708109,47057.0,47056.0,0.24951756]
[1649162343437,0.53708109,47057.0,47053.0,0.24951756]
[1649162343544,0.106236,47056.0,47053.0,0.24951756]
[1649162344374,0.106236,47056.0,47052.0,0.25180542]
[1649162346133,0.05312139,47055.0,47052.0,0.25180542]
[1649162346230,0.106242,47054.0,47052.0,0.25180542]
[1649162346332,0.159364,47054.0,47052.0,0.25180542]
[1649162348376,0.159364,47054.0,47052.0,0.00228786]
[1649162349282,0.053122,47054.0,47052.0,0.00228786]
[1649162349481,0.05,47054.0,47052.0,0.00228786]
[1649162350281,0.05,47054.0,47053.0,0.31466771]
[1649162351129,0.5,47055.0,47053.0,0.31466771]
[1649162351220,0.053118,47054.0,47052.0,0.00228786]
[1649162352823,0.159359,47054.0,47052.0,0.00228786]
[1649162353226,0.159359,47054.0,47052.0,0.00132039]
[1649162353527,0.3,47053.0,47052.0,0.00132039]
[1649162353727,0.319239,47053.0,47052.0,0.00132039]
[1649162354331,0.369239,47053.0,47052.0,0.00132039]
[1649162354433,0.05,47053.0,47052.0,0.00132039]
[1649162354531,0.05,47053.0,47052.0,0.08365681]
[1649162354633,0.53708109,47057.0,47052.0,0.08365681]
[1649162354634,0.53708109,47057.0,47052.0,0.00132039]
[1649162354734,0.05,47056.0,47052.0,0.01206851]
[1649162354875,0.05,47056.0,47052.0,0.00132039]
[1649162355426,0.28963459,47055.0,47052.0,0.00132039]
[1649162355628,0.372366,47054.0,47052.0,0.00132039]
[1649162355726,0.528623,47054.0,47052.0,0.00132039]
[1649162356131,0.478623,47054.0,47052.0,0.00132039]
[1649162356735,0.531754,47054.0,47052.0,0.00132039]
[1649162357729,0.3196742,47053.0,47052.0,0.00132039]
[1649162357830,0.6389132,47053.0,47052.0,0.00132039]
[1649162358873,0.319239,47053.0,47052.0,0.00132039]
[1649162360525,0.26564497,47054.0,47052.0,0.00132039]
[1649162360526,0.159384,47054.0,47052.0,0.00132039]
[1649162360826,0.063758,47056.0,47052.0,0.00132039]
[1649162360926,0.01063,47056.0,47052.0,0.00132039]
[1649162361031,0.53708109,47057.0,47052.0,0.00132039]
[1649162361228,0.53708109,47057.0,47055.0,0.30279186]
[1649162361476,0.53708109,47057.0,47056.0,0.01074812]
[1649162362127,0.53708109,47057.0,47052.0,0.00132039]
[1649162362387,0.59020109,47057.0,47052.0,0.00132039]
[1649162362480,0.30891106,47056.0,47052.0,0.00132039]
[1649162362679,0.30891106,47056.0,47050.0,3.35143348]
[1649162362780,0.59020109,47057.0,47050.0,3.35143348]
[1649162363181,0.59020109,47057.0,47055.0,0.01074812]
[1649162363332,0.59020109,47057.0,47056.0,0.08233642]
[1649162363581,0.59020109,47057.0,47050.0,3.35143348]
[1649162363681,0.59020109,47057.0,47052.0,0.26474838]
[1649162363780,0.59020109,47057.0,47050.0,3.35143348]
[1649162364387,0.24536245,47055.0,47050.0,3.35143348]
[1649162364482,0.053125,47054.0,47050.0,3.35143348]
[1649162364689,0.053125,47054.0,47050.0,1.31807919]
[1649162364786,0.25263795,47053.0,47050.0,1.09159141]
[1649162365288,0.10626222,47052.0,47050.0,1.09159141]
[1649162365385,0.13709008,47052.0,47050.0,1.09159141]
[1649162365486,0.24335708,47052.0,47050.0,1.09159141]
[1649162365886,0.35981866,47051.0,47050.0,1.09159141]
[1649162366126,0.319239,47051.0,47050.0,1.09159141]
[1649162366224,0.44759328,47052.0,47050.0,1.09159141]
[1649162366324,0.319239,47051.0,47050.0,1.09159141]
[1649162366428,0.619239,47051.0,47050.0,0.58893466]
[1649162366830,0.319239,47051.0,47050.0,0.27245666]
[1649162367028,0.19280663,47049.0,47041.0,0.01]
[1649162367126,0.106282,47048.0,47041.0,0.01]
[1649162367427,0.59900555,47046.0,47041.0,0.01]
[1649162367628,0.3,47045.0,47041.0,0.01]
[1649162367730,0.59900555,47046.0,47041.0,0.01]
[1649162367928,0.3,47045.0,47041.0,0.01]
[1649162368030,0.40629202,47045.0,47041.0,0.01]
[1649162368129,0.053141,47044.0,47041.0,0.01]
[1649162368229,0.319239,47043.0,47041.0,0.01]
[1649162368339,0.3,47042.0,47041.0,0.01]
[1649162368429,0.15943266,47044.0,47041.0,0.01]
[1649162368532,0.319239,47043.0,47041.0,0.01]
[1649162368633,0.3,47042.0,47041.0,0.01]
[1649162368737,0.319239,47042.0,47041.0,0.01]
[1649162369032,0.18046691,47042.0,47041.0,0.01]
[1649162369132,0.49970591,47042.0,47041.0,0.01]
[1649162369235,0.319239,47042.0,47041.0,0.01]
[1649162369333,0.306288,47044.0,47041.0,0.01]
[1649162369439,0.106288,47044.0,47041.0,0.01]
[1649162369531,0.206288,47044.0,47041.0,0.01]
[1649162370177,0.3,47043.0,47041.0,0.01]
[1649162370281,0.319239,47042.0,47041.0,0.01]
[1649162370376,0.3,47042.0,47041.0,0.01]
[1649162370579,2.353148,47041.0,47034.0,0.00649997]
[1649162370680,2.406297,47041.0,47033.0,0.00245386]
[1649162370879,2.506297,47041.0,47033.0,0.00245386]
[1649162370976,2.506297,47041.0,47034.0,0.01063]
[1649162371081,0.01063,47040.0,47033.0,0.00245386]